bitfinex/quotes_ETHUSD_20241124
["timestamp","ask_amount","ask_price","bid_price","bid_amount"]
[1732408354318,0.27292641,3417.8,3417.6,0.7576]
[1732408354498,0.27292641,3417.7,3417.6,0.7576]
[1732408354698,0.55,3418.0,3417.6,0.7576]
[1732408354699,0.27292641,3417.9,3417.6,0.7576]
[1732408355000,0.27292641,3417.8,3417.6,0.7576]
[1732408355183,0.27292641,3417.9,3417.5,0.05317219]
[1732408355503,0.27292641,3417.8,3417.5,0.05317219]
[1732408356072,0.58657823,3418.0,3417.5,0.05317219]
[1732408356303,0.27301754,3417.9,3417.5,0.05317219]
[1732408356503,0.27301754,3417.8,3417.5,0.05317219]
[1732408356714,0.58657823,3418.0,3417.5,0.05317219]
[1732408356715,0.27301754,3417.7,3417.5,0.05317219]
[1732408357015,0.27301754,3417.6,3417.5,0.05317219]
[1732408357202,0.5865782,3418.0,3417.5,0.05317219]
[1732408357516,0.27306466,3417.9,3417.5,0.05317219]
[1732408357671,0.27306466,3417.8,3417.5,0.05317219]
[1732408357877,0.30964296,3417.7,3417.5,0.05317219]
[1732408358207,0.27306466,3417.6,3417.5,0.05317219]
[1732408358972,0.27306466,3417.9,3417.5,0.05317219]
[1732408359184,0.27306466,3417.8,3417.5,0.05317219]
[1732408359374,0.27306466,3417.7,3417.5,0.05317219]
[1732408359574,0.55,3418.0,3417.5,0.05317219]
[1732408359871,0.27313223,3417.9,3417.5,0.05317219]
[1732408360079,0.27313223,3417.8,3417.5,0.05317219]
[1732408360304,0.43682807,3418.3,3417.5,0.05317219]
[1732408360608,0.27311367,3418.2,3417.6,0.7703]
[1732408360816,1.27016751,3418.3,3417.6,0.7703]
[1732408360817,0.27311367,3418.1,3417.6,0.7703]
[1732408360977,0.27311367,3418.0,3417.6,0.7703]
[1732408361177,0.27311367,3417.9,3417.6,0.7703]
[1732408361521,0.43682807,3418.6,3417.6,0.7703]
[1732408361726,0.27308614,3418.5,3417.6,0.7703]
[1732408362015,0.27308614,3418.4,3417.6,0.7703]
[1732408362219,0.27308614,3418.3,3417.6,0.7703]
[1732408362399,0.27308614,3418.2,3417.6,0.7703]
[1732408362612,0.55,3418.9,3417.6,0.7703]
[1732408362778,0.27300927,3418.8,3417.6,0.7703]
[1732408362979,0.27300927,3418.7,3417.6,0.7703]
[1732408363224,0.27300927,3418.6,3417.6,0.7703]
[1732408363377,0.27300927,3418.5,3417.6,0.7703]
[1732408363580,0.27300927,3418.4,3417.6,0.7703]
[1732408363819,0.55,3419.0,3417.6,0.7703]
[1732408363979,0.27291461,3418.9,3417.6,0.7703]
[1732408364182,0.27291461,3418.8,3417.6,0.7703]
[1732408364382,0.27291461,3418.7,3417.6,0.7703]
[1732408364682,0.27291461,3418.6,3417.6,0.7703]
[1732408364885,0.03656673,3419.0,3417.6,0.7703]
[1732408365108,0.27282355,3418.9,3417.6,0.7703]
[1732408365314,0.30938968,3418.8,3417.6,0.7703]
[1732408365516,0.27282355,3418.7,3417.6,0.7703]
[1732408365721,0.27282355,3418.6,3417.6,0.7703]
[1732408365922,0.27282355,3418.5,3417.6,0.7703]
[1732408366139,0.27282355,3418.4,3417.6,0.7703]
[1732408366433,0.55,3418.9,3417.6,0.7703]
[1732408366644,0.27272784,3418.8,3417.6,0.7703]
[1732408366799,0.27272784,3418.7,3417.6,0.7703]
[1732408366996,0.27272784,3418.6,3417.6,0.7703]
[1732408367299,0.27272784,3418.5,3417.6,0.7703]
[1732408367521,0.55,3418.9,3417.6,0.7703]
[1732408367728,0.27267548,3418.8,3417.6,0.7703]
[1732408367930,0.27267548,3418.7,3417.6,0.7703]
[1732408368236,0.30924356,3418.6,3417.6,0.7703]
[1732408368448,0.55,3418.7,3417.6,0.7703]
[1732408368738,0.27262599,3418.6,3417.6,0.7703]
[1732408368944,0.27263567,3418.5,3417.6,0.7703]
[1732408369097,0.27263567,3418.4,3417.6,0.7703]
[1732408369730,0.55,3418.3,3417.6,0.7703]
[1732408369937,0.27263567,3418.2,3417.6,0.7703]
[1732408370746,0.58657483,3418.1,3417.6,0.7703]
[1732408370912,0.55,3417.9,3417.6,0.7703]
[1732408371112,0.55,3417.9,3417.5,0.00333697]
[1732408371430,0.27276932,3417.8,3417.5,0.00333697]
[1732408371736,0.16399693,3417.7,3417.5,0.00333697]
[1732408372034,0.2728254,3417.6,3417.5,0.00333697]
[1732408372240,0.16399693,3417.7,3417.5,0.00333697]
[1732408372529,0.27285867,3417.6,3417.5,0.00333697]
[1732408373036,0.27285633,3417.6,3417.5,0.00333697]
[1732408373222,0.16399693,3417.7,3417.5,0.00333697]
[1732408374503,0.27287623,3417.6,3417.5,0.00333697]
[1732408375902,0.16399693,3417.7,3417.5,0.00333697]
[1732408376245,0.55,3417.9,3417.5,0.00333697]
[1732408376246,0.03657984,3417.9,3417.5,0.00333697]
[1732408376437,0.2728669,3417.8,3417.5,0.00333697]
[1732408376643,0.2728669,3417.7,3417.5,0.00333697]
[1732408376809,0.2728669,3417.8,3417.5,0.00333697]
[1732408376999,0.2728669,3417.7,3417.5,0.00333697]
[1732408377201,0.2728669,3417.6,3417.5,0.00333697]
[1732408377507,0.2728669,3417.8,3417.5,0.00333697]
[1732408377844,0.2728669,3417.7,3417.5,0.00333697]
[1732408377997,0.2728669,3417.6,3417.5,0.00333697]
[1732408378200,0.2728669,3417.8,3417.5,0.00333697]
[1732408378443,0.2728669,3417.7,3417.5,0.00333697]
[1732408378604,0.2728669,3417.6,3417.5,0.00333697]
[1732408379233,0.2728669,3417.8,3417.5,0.00333697]
[1732408379433,0.2728669,3417.7,3417.5,0.00333697]
[1732408379733,0.3094463,3417.6,3417.5,0.00333697]
[1732408380143,0.8228669,3417.6,3417.5,0.00333697]
[1732408380635,4.43679074,3417.6,3417.5,0.00333697]
[1732408380816,7.90996088,3417.6,3417.5,0.00333697]
[1732408381016,7.87337497,3417.6,3417.5,0.00333697]
[1732408381216,9.24587847,3417.6,3417.5,0.00333697]
[1732408382103,9.24584155,3417.6,3417.5,0.00333697]
[1732408383626,5.63191771,3417.6,3417.5,0.00333697]
[1732408383844,1.25941421,3417.6,3417.5,0.00333697]
[1732408384020,0.82285162,3417.6,3417.5,0.00333697]
[1732408385735,0.85921046,3417.6,3417.5,0.00333697]
[1732408386101,1.67831046,3417.6,3417.5,0.00333697]
[1732408386619,10.84094836,3417.6,3417.5,0.00333697]
[1732408386950,12.23850679,3417.6,3417.5,0.00333697]
[1732408387109,0.8191,3417.1,3415.1,0.754]
[1732408387322,0.55,3416.9,3415.2,0.754]
[1732408387555,0.55,3416.7,3415.2,0.754]
[1732408387762,0.55,3416.7,3415.4,0.754]
[1732408388577,0.03659309,3416.7,3415.4,0.754]
[1732408389079,0.55,3416.6,3415.4,0.754]
[1732408389354,0.55,3416.4,3415.4,0.754]
[1732408389989,0.03659651,3416.3,3415.4,0.754]
[1732408392924,0.55,3416.2,3415.4,0.754]
[1732408393140,0.03659844,3416.1,3415.4,0.754]
[1732408393515,0.55,3416.0,3415.4,0.754]
[1732408393722,0.03659956,3415.9,3415.4,0.754]
[1732408394035,0.55,3416.2,3415.4,0.754]
[1732408394241,3.0,3416.7,3415.4,0.754]
[1732408394414,0.55,3416.6,3415.4,0.754]
[1732408394611,0.7952,3416.8,3415.4,0.754]
[1732408394848,0.72104011,3417.0,3415.4,0.754]
[1732408395079,0.27184217,3416.9,3415.4,0.754]
[1732408395370,0.27184217,3416.8,3415.4,0.754]
[1732408395676,0.78715651,3417.0,3415.4,0.754]
[1732408395869,0.27188122,3416.9,3415.4,0.754]
[1732408396074,0.7952,3417.5,3415.5,0.7673]
[1732408396271,0.27186543,3417.4,3415.7,0.7673]
[1732408396482,0.27190414,3417.3,3415.7,0.7673]
[1732408396637,0.27190414,3417.2,3415.7,0.7673]
[1732408396845,0.7952,3417.5,3415.7,2.80042384]
[1732408397165,0.0365842,3417.7,3415.9,0.7673]
[1732408397350,0.27187371,3417.6,3415.9,0.7673]
[1732408397545,0.27187371,3417.5,3416.1,0.7673]
[1732408397747,1.23019636,3417.8,3416.1,0.7673]
[1732408397748,0.7952,3417.8,3416.2,0.7673]
[1732408397959,2.80042384,3418.4,3416.2,0.7673]
[1732408397960,0.7952,3418.1,3416.4,0.7673]
[1732408398165,0.27195384,3418.0,3416.4,0.7673]
[1732408398381,0.03657767,3418.3,3416.4,0.7673]
[1732408398535,0.27200399,3418.2,3416.5,0.39598944]
[1732408398739,0.03657767,3418.3,3416.8,0.7673]
[1732408398984,3.59562384,3418.4,3416.8,0.7673]
[1732408399278,0.27200101,3418.3,3416.8,0.7673]
[1732408399451,3.0,3418.3,3416.8,0.7673]
[1732408399853,0.72231052,3418.3,3416.8,0.7673]
[1732408400248,0.55,3418.1,3416.8,0.7673]
[1732408400449,0.03657902,3418.0,3416.8,0.7673]
[1732408401392,0.27211509,3417.9,3416.8,0.7673]
[1732408401549,0.03657998,3417.8,3416.8,0.7673]
[1732408402567,0.83177998,3418.2,3416.8,0.7673]
[1732408402866,0.96791672,3418.1,3416.8,0.7673]
[1732408403077,0.58657656,3418.0,3416.8,0.7673]
[1732408403483,3.3870004,3418.0,3416.8,0.7673]
[1732408403813,3.0,3417.9,3416.8,0.7673]
[1732408403975,3.55,3417.5,3416.8,0.7673]
[1732408404303,0.55,3417.3,3416.7,0.04983522]
[1732408404605,0.55,3417.4,3416.7,0.04983522]
[1732408404808,0.03658743,3417.3,3416.7,0.04983522]
[1732408405009,1.3452,3417.2,3416.7,0.04983522]
[1732408405309,0.03658933,3417.1,3416.7,0.04983522]
[1732408407066,1.3452,3417.2,3416.7,0.04983522]
[1732408407669,0.63870112,3417.3,3416.7,0.04983522]
[1732408407869,0.36752913,3417.2,3416.8,0.7935]
[1732408408294,0.36752913,3417.2,3416.7,0.04983522]
[1732408408504,0.40411654,3417.2,3416.7,0.04983522]
[1732408408871,0.36752913,3417.2,3416.7,0.04983522]
[1732408409264,0.03658737,3417.1,3416.7,0.04983522]
[1732408409904,2.80042384,3416.8,3416.7,0.04983522]
[1732408410139,6.72571887,3416.8,3416.7,0.04983522]
[1732408410433,6.96146868,3416.8,3416.7,0.04983522]
[1732408410605,7.74456868,3416.8,3416.7,0.04983522]
[1732408411411,8.18039181,3416.8,3416.7,0.04983522]
[1732408412336,11.10710181,3416.8,3416.7,0.04983522]
[1732408413018,1.04686797,3416.8,3416.7,0.04983522]
[1732408413228,0.27234372,3416.8,3416.7,0.04983522]
[1732408413753,0.4724121,3417.4,3416.7,0.04983522]
[1732408414046,0.2722562,3417.3,3416.7,0.04983522]
[1732408414219,0.03658897,3417.4,3416.7,0.04983522]
[1732408414220,0.39107478,3417.2,3416.7,0.04983522]
[1732408414432,0.35448789,3417.2,3416.7,0.04983522]
[1732408414961,0.03658672,3417.1,3416.7,0.04983522]
[1732408415149,0.39107605,3417.2,3416.7,0.04983522]
[1732408415313,0.33544879,3417.1,3416.7,0.04983522]
[1732408415515,0.03658789,3417.0,3416.7,0.04983522]
[1732408415711,1.3823,3416.9,3416.7,0.04983522]
[1732408415937,0.58659238,3416.8,3416.7,0.04983522]
[1732408416138,4.6693695,3416.8,3416.7,0.04983522]
[1732408417787,0.8104765,3416.8,3416.7,0.04983522]
[1732408417919,3.0,3417.0,3416.7,0.04983522]
[1732408418422,0.8323,3417.3,3416.7,0.04983522]
[1732408418764,2.83701265,3417.5,3416.7,0.04983522]
[1732408419055,0.63919377,3417.4,3416.7,0.04983522]
[1732408419262,0.40351797,3417.4,3416.7,0.04983522]
[1732408419428,0.27229237,3417.3,3416.7,0.04983522]
[1732408419622,0.40351797,3417.4,3416.7,0.04983522]
[1732408419977,3.40351797,3417.4,3416.7,0.04983522]
[1732408420161,0.62039418,3417.3,3416.7,0.04983522]
[1732408421737,0.43576769,3417.7,3416.8,0.8007]
[1732408422038,3.0,3417.8,3416.8,0.8007]
[1732408422039,3.03658287,3417.8,3416.8,0.8007]
[1732408422368,0.85237681,3417.7,3416.8,0.8007]
[1732408422570,0.58004238,3417.7,3416.8,0.8007]
[1732408423470,0.27247153,3417.6,3416.8,0.8007]
[1732408423658,0.58004238,3417.7,3416.8,0.8007]
[1732408423860,0.03658284,3417.8,3416.8,0.8007]
[1732408424057,0.27246328,3417.7,3416.8,0.8007]
[1732408424255,0.03658284,3417.8,3416.8,0.8007]
[1732408424473,0.27253115,3417.7,3416.8,0.8007]
[1732408424673,0.03658284,3417.8,3416.8,0.8007]
[1732408424841,0.5562316,3417.7,3416.8,0.8007]
[1732408425172,0.28370067,3417.7,3416.8,0.8007]
[1732408425538,4.40721772,3418.2,3416.8,0.8007]
[1732408425741,1.25864263,3418.1,3416.8,0.8007]
[1732408425953,0.27255486,3418.0,3416.8,0.8007]
[1732408426160,0.27255486,3417.9,3416.8,0.8007]
[1732408426357,0.27255486,3417.8,3416.8,0.8007]
[1732408426556,0.43608777,3418.1,3416.8,0.8007]
[1732408426758,0.30912181,3418.0,3416.8,0.8007]
[1732408426966,0.27254645,3417.9,3416.8,0.8007]
[1732408427175,0.03657538,3418.4,3416.8,0.8007]
[1732408427474,0.27252261,3418.3,3416.8,0.8007]
[1732408427671,0.30909799,3418.2,3416.8,0.8007]
[1732408427968,0.27252261,3418.1,3416.8,0.8007]
[1732408428181,0.03657538,3418.0,3416.8,0.8007]
[1732408428480,0.45036355,3418.3,3416.8,0.8007]
[1732408428820,0.27246844,3418.2,3416.8,0.8007]
[1732408428981,0.45036355,3418.3,3416.8,0.8007]
[1732408429177,0.27246381,3418.2,3416.8,0.8007]
[1732408429378,0.03657538,3418.3,3416.8,0.8007]
[1732408429580,0.27245987,3418.2,3416.8,0.8007]
[1732408429765,0.03657538,3418.3,3416.8,0.8007]
[1732408429968,0.27246171,3418.2,3416.8,0.8007]
[1732408430177,0.03657538,3418.3,3416.8,0.8007]
[1732408430495,0.27246238,3418.2,3416.8,0.8007]
[1732408430677,0.03657538,3418.3,3416.8,0.8007]
[1732408430998,0.27243906,3418.2,3416.8,0.8007]
[1732408431201,0.03657538,3418.3,3417.0,0.764]
[1732408432085,0.03657538,3418.3,3417.2,0.764]
[1732408432275,0.03657538,3418.3,3417.3,0.40142834]
[1732408432516,0.03657538,3418.3,3417.4,0.764]
[1732408432676,0.03657537,3418.5,3417.5,0.40140485]
[1732408432881,0.27233226,3418.4,3417.6,0.764]
[1732408433075,0.03657536,3418.3,3417.6,0.764]
[1732408437819,3.0,3418.6,3417.6,0.764]
[1732408437987,0.27212239,3418.5,3417.6,0.764]
[1732408438176,0.55,3418.7,3417.6,0.764]
[1732408438368,0.27208098,3418.6,3417.6,0.764]
[1732408438706,3.0,3419.0,3417.6,0.764]
[1732408438877,0.30861062,3418.9,3417.6,0.764]
[1732408439080,3.73441238,3419.0,3417.6,0.764]
[1732408439408,0.03657098,3418.9,3417.6,0.764]
[1732408440108,0.27197438,3418.8,3417.6,0.764]
[1732408440313,0.03657098,3418.9,3417.6,0.764]
[1732408440314,0.55,3418.6,3417.6,0.764]
[1732408440623,0.55,3418.2,3417.6,0.764]
[1732408440773,0.03657754,3418.1,3417.6,0.764]
[1732408441482,0.55,3418.0,3417.5,0.40140485]
[1732408441689,0.39523887,3417.9,3417.5,0.40140485]
[1732408441895,0.35865775,3417.9,3417.5,0.40140485]
[1732408442780,0.03657846,3417.8,3417.5,0.40140485]
[1732408443520,2.80042384,3418.1,3417.5,0.40140485]
[1732408443680,0.42255507,3418.3,3417.5,0.40140485]
[1732408443882,0.96905655,3418.2,3417.5,0.40140485]
[1732408444119,0.29850814,3418.1,3417.5,0.40140485]
[1732408444286,0.27237264,3418.0,3417.5,0.40140485]
[1732408445700,0.69668391,3418.2,3417.5,0.40140485]
[1732408446022,0.27244475,3418.1,3417.6,0.8288]
[1732408446225,0.55,3418.4,3417.6,0.8288]
[1732408446522,0.85521749,3418.3,3417.6,0.8288]
[1732408446821,0.27256156,3418.2,3417.6,0.8288]
[1732408446984,3.37655934,3418.1,3417.5,0.40140485]
[1732408447187,0.27256156,3418.0,3417.5,0.40140485]
[1732408447581,0.0261355,3417.9,3417.5,0.40140485]
[1732408447787,0.27256156,3417.8,3417.5,0.40140485]
[1732408449325,0.27284358,3417.7,3417.5,0.40140485]
[1732408449642,0.41368759,3417.9,3417.5,0.40140485]
[1732408449935,0.27291659,3417.8,3417.5,0.40140485]
[1732408450226,0.27291659,3417.7,3417.5,0.40140485]
[1732408450527,0.27291659,3417.6,3417.5,0.40140485]
[1732408451022,0.27291659,3417.7,3417.5,0.40140485]
[1732408451224,0.66886241,3417.7,3417.5,0.40140485]
[1732408451522,0.27291659,3417.6,3417.5,0.40140485]
[1732408452218,4.04931659,3417.6,3417.5,0.40140485]
[1732408452887,3.0,3417.4,3415.4,0.8288]
[1732408453196,4.04931659,3417.6,3415.6,0.8288]
[1732408453197,3.0,3417.2,3415.6,0.8288]
[1732408453398,0.7764,3417.0,3415.7,0.40161638]
[1732408453603,0.27291659,3416.9,3415.9,0.8288]
[1732408453845,0.27291659,3416.9,3416.0,0.40158111]
[1732408454390,0.0261355,3416.8,3416.0,0.40158111]
[1732408454623,0.27291659,3416.7,3416.0,0.40158111]
[1732408454931,0.0261355,3416.8,3416.0,0.40158111]
[1732408455173,0.27287428,3416.7,3416.0,0.40158111]
[1732408455372,0.29900978,3416.6,3416.0,0.40158111]
[1732408455531,0.27287428,3416.5,3416.0,0.40158111]
[1732408455726,0.82432745,3416.7,3416.0,0.40158111]
[1732408455727,0.0261355,3416.4,3416.0,0.40158111]
[1732408455926,0.0261355,3416.6,3416.0,0.40158111]
[1732408456858,0.27256942,3416.5,3416.0,0.40158111]
[1732408457059,0.0261355,3416.4,3416.0,0.40158111]
[1732408457229,0.7655,3416.3,3416.0,0.40158111]
[1732408457425,0.0261355,3416.2,3416.0,0.40158111]
[1732408458051,2.80042384,3416.1,3416.0,0.40158111]
[1732408458364,6.72474643,3416.1,3416.0,0.40158111]
[1732408458556,6.0728325,3416.1,3415.3,0.8327]
[1732408458881,0.0261355,3416.0,3415.3,0.8327]
[1732408460350,0.28265593,3415.9,3415.8,0.01869236]
[1732408461780,1.04815593,3415.9,3415.8,0.01869236]
[1732408462151,1.31989952,3415.9,3415.8,0.01869236]
[1732408462361,1.04815593,3415.9,3415.8,0.01869236]
[1732408462562,3.97563593,3415.9,3415.8,0.01869236]
[1732408462785,6.97563593,3415.9,3415.8,0.01869236]
[1732408463085,7.79724994,3415.9,3415.8,0.01869236]
[1732408463278,3.55,3415.6,3414.4,0.8327]
[1732408463479,2.80042384,3414.9,3414.5,0.40175753]
[1732408464181,2.82655934,3414.9,3414.5,0.40175753]
[1732408466079,2.80042384,3414.8,3414.5,0.40175753]
[1732408466271,0.38534143,3414.7,3414.5,0.40175753]
[1732408467186,2.80042384,3414.8,3414.5,0.40175753]
[1732408467563,0.7655,3415.0,3414.5,0.40175753]
[1732408467766,0.0261355,3415.3,3414.5,0.40175753]
[1732408468067,0.0261355,3415.3,3414.6,0.8327]
[1732408468388,0.0261355,3415.5,3414.6,0.8327]
[1732408468599,2.80042384,3415.7,3414.6,0.8327]
[1732408468753,0.0261355,3415.6,3414.6,0.8327]
[1732408468952,2.82655934,3415.7,3414.6,0.8327]
[1732408469379,2.80042384,3415.7,3414.6,0.8327]
[1732408470126,0.0261355,3415.6,3414.6,0.8327]
[1732408470394,3.13748087,3415.7,3414.6,0.8327]
[1732408470690,0.0261355,3415.6,3414.6,0.8327]
[1732408471596,2.80042384,3415.7,3414.6,0.8327]
[1732408471803,0.0261355,3415.6,3414.6,0.8327]
[1732408472004,0.33705703,3415.6,3414.6,0.8327]
[1732408472482,0.7655,3415.5,3414.6,0.8327]
[1732408472686,0.0261355,3415.4,3414.6,0.8327]
[1732408474291,0.0261355,3415.5,3414.6,0.8327]
[1732408474502,0.31374809,3415.4,3414.6,0.8327]
[1732408474716,0.0261355,3415.3,3414.6,0.8327]
[1732408475812,0.31374809,3415.4,3414.6,0.8327]
[1732408476374,0.33988359,3415.4,3414.6,0.8327]
[1732408476680,0.31374809,3415.4,3414.7,0.39261276]
[1732408476886,0.31092153,3415.6,3414.7,0.39261276]
[1732408477084,0.31092153,3415.6,3414.8,0.7988]
[1732408478116,0.0261355,3415.6,3414.8,0.7988]
[1732408480688,2.80042384,3415.7,3414.8,0.7988]
[1732408481113,0.0261355,3415.6,3414.8,0.7988]
[1732408482608,2.80042384,3415.3,3414.8,0.7988]
[1732408482796,0.0261355,3415.2,3414.8,0.7988]
[1732408482988,0.59431275,3415.3,3414.8,0.7988]
[1732408483806,0.7981355,3415.5,3414.8,0.7988]
[1732408483984,0.27265554,3415.4,3413.7,0.02928512]
[1732408484185,2.80042384,3415.2,3413.6,0.55]
[1732408484391,0.0261355,3415.1,3413.6,0.57928861]
[1732408484591,3.3449639,3415.1,3413.7,0.7988]
[1732408484892,0.772,3414.9,3413.7,0.7988]
[1732408485093,3.53835555,3414.8,3413.7,0.7988]
[1732408485399,0.27294706,3414.7,3413.7,0.7988]
[1732408485703,0.0261355,3414.6,3413.7,0.7988]
[1732408486089,0.0261355,3414.7,3413.7,0.7988]
[1732408486280,0.4272757,3414.7,3413.7,0.7988]
[1732408486922,0.27296067,3414.6,3413.7,0.7988]
[1732408487082,0.4272757,3414.7,3413.7,0.7988]
[1732408487282,0.27296043,3414.6,3413.7,0.7988]
[1732408487520,0.4272757,3414.7,3413.7,0.7988]
[1732408488442,0.43897819,3414.8,3413.7,0.7988]
[1732408488719,0.0261355,3415.0,3413.7,0.7988]
[1732408488918,0.772,3415.4,3413.8,0.57929008]
[1732408488919,0.27293644,3414.9,3413.8,0.57929008]
[1732408489120,0.0261355,3415.3,3413.8,0.57929008]
[1732408489317,0.27292737,3415.2,3413.8,0.55]
[1732408489522,0.29906287,3415.1,3413.9,0.7988]
[1732408489733,0.0261355,3415.1,3413.9,0.7988]
[1732408490031,0.0261355,3415.4,3413.9,0.0292896]
[1732408490205,0.27291962,3415.3,3414.0,0.7988]
[1732408490402,0.0261355,3415.4,3414.0,0.7988]
[1732408490594,0.27294795,3415.3,3414.0,0.7988]
[1732408490790,0.68337788,3415.5,3414.1,0.02928736]
[1732408491022,0.27295282,3415.4,3414.0,0.02928736]
[1732408491199,0.29908832,3415.3,3414.0,0.02928736]
[1732408491393,0.27295282,3415.2,3414.1,1.01300761]
[1732408491593,0.29908832,3415.2,3414.3,0.7988]
[1732408491788,0.72558017,3415.4,3414.5,0.7988]
[1732408492130,0.27297737,3415.3,3414.6,1.01300761]
[1732408492332,0.72558017,3415.4,3414.6,1.01300761]
[1732408492658,0.0261355,3415.5,3414.7,0.21420761]
[1732408492836,0.0261355,3415.5,3414.6,0.7988]
[1732408493124,0.27297553,3415.4,3414.7,0.21411716]
[1732408493427,0.0261355,3415.5,3414.8,0.21411716]
[1732408493617,0.67651245,3415.4,3414.9,0.21411716]
[1732408493929,0.40353202,3415.4,3415.0,0.21411716]
[1732408494089,0.42966752,3415.4,3415.1,0.21411716]
[1732408494289,0.40353202,3415.4,3415.2,1.03851716]
[1732408494530,2.80042384,3415.7,3415.3,0.21411716]
[1732408494852,0.27297125,3415.6,3415.4,0.21411716]
[1732408494996,0.28265593,3415.7,3415.5,0.21411716]
[1732408495206,0.27296184,3415.6,3415.2,0.8244]
[1732408495399,0.0261355,3415.9,3415.3,0.2140291]
[1732408495708,0.27298137,3415.8,3415.4,0.2140291]
[1732408495908,0.58485339,3415.6,3415.5,0.2140291]
[1732408496111,0.58485339,3415.6,3415.2,0.8244]
[1732408496310,0.58485339,3415.6,3415.3,0.21398576]
[1732408496517,0.58485339,3415.6,3415.4,0.21398576]
[1732408496810,0.58485339,3415.6,3415.5,0.21398576]
[1732408497025,1.2290318,3415.6,3414.8,0.5792934]
[1732408497343,1.2290318,3415.6,3414.9,1.03844097]
[1732408497344,0.27301755,3415.5,3414.9,1.03844097]
[1732408497653,0.27301755,3415.5,3415.0,0.21404097]
[1732408497807,1.62538119,3415.6,3413.4,0.2919]
[1732408497808,2.80042384,3415.3,3413.4,0.2919]
[1732408498149,0.27308657,3415.2,3414.5,0.8244]
[1732408498305,0.27308657,3415.1,3414.5,0.8244]
[1732408498636,0.35818226,3415.2,3414.6,0.21414711]
[1732408498805,0.27308716,3415.1,3414.7,0.21414711]
[1732408499006,0.27308716,3415.0,3414.8,0.21414711]
[1732408499205,0.27308716,3415.0,3414.9,0.21414711]
[1732408499538,0.27308716,3415.0,3414.5,0.8244]
[1732408499717,0.0261355,3415.3,3414.6,0.21413589]
[1732408500038,0.2730838,3415.2,3414.7,0.21413589]
[1732408500238,0.2992193,3415.1,3414.8,0.21413589]
[1732408500437,0.2730838,3415.0,3414.5,0.8244]
[1732408500639,0.46307746,3415.5,3414.6,0.21401752]
[1732408500944,0.98116194,3415.4,3414.7,0.21401752]
[1732408501113,0.29921731,3415.3,3414.8,0.21401752]
[1732408501437,0.29921731,3415.3,3413.4,0.02928881]
[1732408501438,2.80042384,3415.1,3414.2,0.8244]
[1732408501738,0.58958597,3414.9,3414.3,0.21405425]
[1732408501939,0.29921731,3414.8,3414.4,0.21405425]
[1732408502145,0.27308181,3414.7,3414.2,0.8244]
[1732408502444,0.0261355,3414.6,3414.3,0.21408497]
[1732408502739,0.17383622,3414.7,3414.2,0.8244]
[1732408502907,0.29920253,3414.6,3414.3,0.21403892]
[1732408503108,0.27306703,3414.5,3414.2,0.8244]
[1732408503303,0.27306703,3414.5,3413.3,0.8244]
[1732408503304,0.0261355,3414.4,3413.3,0.8244]
[1732408503638,3.07349087,3414.3,3413.3,0.8244]
[1732408503842,2.80042384,3413.9,3413.3,0.8244]
[1732408504061,0.59738824,3413.7,3413.3,0.8244]
[1732408504226,0.0261355,3413.6,3413.3,0.8244]
[1732408504843,0.0261355,3413.6,3413.0,0.8244]
[1732408505341,0.0261355,3413.8,3413.0,0.8244]
[1732408505928,0.27272525,3413.7,3413.0,0.8244]
[1732408506171,0.0261355,3413.6,3413.0,0.8244]
[1732408507076,0.0261355,3413.7,3413.0,0.8244]
[1732408507241,2.82655934,3413.7,3413.0,0.8244]
[1732408507428,0.27255843,3413.6,3413.0,0.8244]
[1732408507740,0.0261355,3413.5,3413.0,0.8244]
[1732408508340,0.0261355,3413.5,3411.4,2.80042384]
[1732408508341,0.8520355,3413.5,3412.1,1.17360289]
[1732408508567,1.13469143,3413.5,3412.2,0.34809269]
[1732408508954,1.13469143,3413.5,3412.3,0.29808396]
[1732408509262,2.80042384,3413.3,3412.3,0.29808396]
[1732408509481,0.0261355,3413.2,3412.3,0.29808396]
[1732408509623,2.80042384,3412.9,3412.3,0.29808396]
[1732408510842,1.40105292,3413.1,3412.3,0.29808396]
[1732408510843,1.42718842,3413.1,3412.3,0.29808396]
[1732408511042,0.42276123,3413.0,3412.3,0.29808396]
[1732408511467,2.80042384,3413.4,3412.4,0.8255]
[1732408511669,2.82655934,3413.4,3412.4,0.8255]
[1732408512288,2.80042384,3413.0,3412.4,0.8255]
[1732408512432,0.30617788,3412.9,3412.4,0.8255]
[1732408512856,0.30617788,3412.9,3412.3,0.29808396]
[1732408513054,0.8259,3412.8,3412.3,0.29808396]
[1732408513254,0.0261355,3412.7,3412.3,0.29808396]
[1732408513641,0.0261355,3412.7,3412.0,0.8255]
[1732408514056,2.80042384,3412.6,3410.9,0.60615865]
[1732408514367,3.39138143,3412.5,3411.0,0.8043]
[1732408514573,0.8292,3412.4,3411.0,0.8043]
[1732408514735,0.0261355,3412.3,3411.0,0.8043]
[1732408514935,3.22248198,3412.2,3411.0,0.8043]
[1732408515133,0.0261355,3412.1,3411.0,0.8043]
[1732408515374,2.80042384,3411.8,3411.1,0.29818882]
[1732408515663,0.8553355,3411.7,3411.1,0.29818882]
[1732408516031,2.80042384,3411.4,3410.7,0.8043]
[1732408516231,0.0261355,3411.3,3410.7,0.8043]
[1732408516546,0.0261355,3411.9,3410.7,0.8043]
[1732408516769,0.0261355,3411.9,3409.7,0.68692443]
[1732408516770,0.8292,3412.5,3410.9,0.8043]
[1732408516935,3.0261355,3412.7,3411.0,0.0293121]
[1732408517260,3.0261355,3412.7,3411.1,0.8043]
[1732408517465,0.58265593,3412.6,3411.1,0.8043]
[1732408517639,0.58265593,3412.6,3411.3,0.8043]
[1732408518036,2.80042384,3412.4,3411.3,0.8043]
[1732408518346,0.36705703,3412.3,3411.3,0.8043]
[1732408518672,0.0261355,3412.2,3411.3,0.8043]
[1732408519471,2.80042384,3412.0,3411.3,0.8043]
[1732408519774,2.80042384,3411.6,3410.0,0.02931911]
[1732408519936,0.0261355,3411.5,3410.4,0.8043]
[1732408520136,3.08307977,3411.6,3410.4,0.8043]
[1732408520469,2.80042384,3411.2,3410.4,0.8043]
[1732408521474,2.80042384,3410.8,3409.2,0.8043]
[1732408521771,2.80042384,3410.8,3409.0,0.8043]
[1732408522274,0.8292,3410.7,3409.0,0.8043]
[1732408522459,0.8292,3410.7,3409.0,0.62226972]
[1732408522686,0.8292,3410.7,3409.1,0.8043]
[1732408522835,0.8292,3410.7,3409.2,0.20182215]